[Event "Early-Titled-Tuesday-Blitz-March-05-2024"]
[Site "Chess.com"]
[Date "2024.03.05"]
[Round "8"]
[White "amelia91"]
[Black "Darius321"]
[Result "1-0"]
[WhiteElo "2054"]
[BlackElo "2347"]
[TimeControl "180+1"]
[EndTime "9:30:03 PST"]
[Termination "amelia91 won on time"]

1. d4 {[%clk 0:03:00.9]} 1... d5 {[%clk 0:02:46.3]} 2. Bf4 {[%clk 0:02:59.2]}
2... Bf5 {[%clk 0:02:44.7]} 3. c4 {[%clk 0:02:58.1]} 3... e6 {[%clk 0:02:43.8]}
4. Nc3 {[%clk 0:02:57.7]} 4... Nf6 {[%clk 0:02:41.8]} 5. e3 {[%clk 0:02:55.1]}
5... Bd6 {[%clk 0:02:36.9]} 6. Bg3 {[%clk 0:02:46.7]} 6... O-O {[%clk
0:02:35.9]} 7. Nf3 {[%clk 0:02:43.9]} 7... c5 {[%clk 0:02:30]} 8. dxc5 {[%clk
0:02:36.1]} 8... Bxc5 {[%clk 0:02:27.1]} 9. Be2 {[%clk 0:02:32.8]} 9... Ne4
{[%clk 0:02:16.2]} 10. cxd5 {[%clk 0:02:24.5]} 10... Nxc3 {[%clk 0:02:14.9]} 11.
bxc3 {[%clk 0:02:25]} 11... exd5 {[%clk 0:02:14.3]} 12. O-O {[%clk 0:02:24.3]}
12... Nc6 {[%clk 0:02:14.1]} 13. Qb3 {[%clk 0:02:19.9]} 13... Na5 {[%clk
0:01:59.8]} 14. Qb5 {[%clk 0:02:11.4]} 14... b6 {[%clk 0:01:50.6]} 15. Rfd1
{[%clk 0:02:06.2]} 15... Be4 {[%clk 0:01:30.1]} 16. c4 {[%clk 0:01:46.5]} 16...
d4 {[%clk 0:00:29.9]} 17. Nxd4 {[%clk 0:01:36]} 17... Qf6 {[%clk 0:00:21.1]} 18.
Qd7 {[%clk 0:01:14.3]} 18... Rfd8 {[%clk 0:00:19.4]} 19. Qg4 {[%clk 0:01:12.4]}
19... Bg6 {[%clk 0:00:17.4]} 20. Bh4 {[%clk 0:01:11.3]} 20... h5 {[%clk
0:00:14.4]} 21. Bxf6 {[%clk 0:01:10.2]} 21... hxg4 {[%clk 0:00:14.1]} 22. Bxd8
{[%clk 0:01:10.1]} 22... Rxd8 {[%clk 0:00:13.8]} 23. Bxg4 {[%clk 0:01:04.2]}
23... Nxc4 {[%clk 0:00:12.6]} 24. Nc6 {[%clk 0:00:52.9]} 24... Ra8 {[%clk
0:00:12.6]} 25. Rd7 {[%clk 0:00:43.5]} 25... Be4 {[%clk 0:00:07]} 26. Ne7+
{[%clk 0:00:41.8]} 26... Kh7 {[%clk 0:00:07.1]} 27. Bf5+ {[%clk 0:00:40.4]}
27... Bxf5 {[%clk 0:00:06.9]} 28. Nxf5 {[%clk 0:00:41.3]} 28... Kg6 {[%clk
0:00:06.1]} 29. Nd4 {[%clk 0:00:37.8]} 29... a5 {[%clk 0:00:06.1]} 30. Rc1
{[%clk 0:00:35.3]} 30... Ne5 {[%clk 0:00:05.7]} 31. Rb7 {[%clk 0:00:33.7]} 31...
a4 {[%clk 0:00:05.5]} 32. Nf3 {[%clk 0:00:32.7]} 32... Nd3 {[%clk 0:00:05.2]}
33. Rd1 {[%clk 0:00:31.2]} 33... Nb4 {[%clk 0:00:05.1]} 34. Rdd7 {[%clk
0:00:25.7]} 34... Rf8 {[%clk 0:00:02.8]} 35. a3 {[%clk 0:00:24.2]} 35... Nc2
{[%clk 0:00:02.9]} 36. Ne5+ {[%clk 0:00:22]} 36... Kf5 {[%clk 0:00:01.2]} 37.
Nc4 {[%clk 0:00:21.8]} 1-0

[Event "Early-Titled-Tuesday-Blitz-March-05-2024"]
[Site "Chess.com"]
[Date "2024.03.05"]
[Round "8"]
[White "kids2010"]
[Black "Matalon"]
[Result "1-0"]
[WhiteElo "2777"]
[BlackElo "2507"]
[TimeControl "180+1"]
[EndTime "9:30:04 PST"]
[Termination "kids2010 won by resignation"]

1. e4 {[%clk 0:03:00.9]} 1... c5 {[%clk 0:02:55.8]} 2. Nc3 {[%clk 0:02:59.3]}
2... Nc6 {[%clk 0:02:54]} 3. Bb5 {[%clk 0:02:53.9]} 3... Nd4 {[%clk 0:02:53.7]}
4. Bc4 {[%clk 0:02:53.8]} 4... a6 {[%clk 0:02:53.4]} 5. Nf3 {[%clk 0:02:46.1]}
5... b5 {[%clk 0:02:53.1]} 6. Bd5 {[%clk 0:02:36.8]} 6... Rb8 {[%clk 0:02:52.8]}
7. Nxd4 {[%clk 0:02:37]} 7... cxd4 {[%clk 0:02:53]} 8. Ne2 {[%clk 0:02:37.8]}
8... e6 {[%clk 0:02:53.2]} 9. Bb3 {[%clk 0:02:37.9]} 9... Bc5 {[%clk 0:02:44.5]}
10. O-O {[%clk 0:02:37]} 10... Ne7 {[%clk 0:02:42.3]} 11. d3 {[%clk 0:02:37.4]}
11... O-O {[%clk 0:02:38.8]} 12. Ng3 {[%clk 0:02:36.9]} 12... d5 {[%clk
0:02:33.3]} 13. e5 {[%clk 0:02:24.1]} 13... Nc6 {[%clk 0:02:25.2]} 14. f4 {[%clk
0:02:15.6]} 14... f6 {[%clk 0:02:23.1]} 15. exf6 {[%clk 0:02:16.5]} 15... Qxf6
{[%clk 0:02:19.9]} 16. Bd2 {[%clk 0:02:16.9]} 16... Bd7 {[%clk 0:02:14.1]} 17.
Qe2 {[%clk 0:02:12]} 17... Kh8 {[%clk 0:02:00]} 18. a4 {[%clk 0:01:36]} 18... b4
{[%clk 0:01:39.5]} 19. Rae1 {[%clk 0:01:34.9]} 19... Na5 {[%clk 0:01:24.7]} 20.
Qf3 {[%clk 0:01:16.7]} 20... Nxb3 {[%clk 0:01:21.7]} 21. cxb3 {[%clk 0:01:17.6]}
21... Bd6 {[%clk 0:01:18.4]} 22. Re2 {[%clk 0:01:09.7]} 22... Rbc8 {[%clk
0:01:16]} 23. Qh5 {[%clk 0:00:42.4]} 23... Be8 {[%clk 0:01:05.7]} 24. Qg4 {[%clk
0:00:42.2]} 24... Bd7 {[%clk 0:00:57.9]} 25. Ref2 {[%clk 0:00:25]} 25... g6
{[%clk 0:00:51.9]} 26. h4 {[%clk 0:00:20.1]} 26... Rf7 {[%clk 0:00:44.3]} 27. h5
{[%clk 0:00:12.4]} 27... e5 {[%clk 0:00:44.6]} 28. Qe2 {[%clk 0:00:06.9]} 28...
exf4 {[%clk 0:00:43.5]} 29. Bxf4 {[%clk 0:00:06.9]} 29... Bxf4 {[%clk
0:00:40.7]} 30. Rxf4 {[%clk 0:00:07.8]} 30... Qxf4 {[%clk 0:00:40.8]} 31. Rxf4
{[%clk 0:00:08.7]} 31... Rxf4 {[%clk 0:00:40.6]} 32. Qe5+ {[%clk 0:00:09.4]}
32... Kg8 {[%clk 0:00:40.9]} 33. Qxf4 {[%clk 0:00:09.7]} 1-0

[Event "Early-Titled-Tuesday-Blitz-March-05-2024"]
[Site "Chess.com"]
[Date "2024.03.05"]
[Round "8"]
[White "AlexandraSamaganova"]
[Black "Kotofeyca"]
[Result "0-1"]
[WhiteElo "2295"]
[BlackElo "2453"]
[TimeControl "180+1"]
[EndTime "9:30:06 PST"]
[Termination "Kotofeyca won by checkmate"]

1. c4 {[%clk 0:03:00.1]} 1... c6 {[%clk 0:02:59.3]} 2. e4 {[%clk 0:02:58.5]}
2... d5 {[%clk 0:02:59.8]} 3. exd5 {[%clk 0:02:57.6]} 3... cxd5 {[%clk
0:03:00.7]} 4. d4 {[%clk 0:02:57.9]} 4... Nf6 {[%clk 0:03:00]} 5. Nc3 {[%clk
0:02:58.1]} 5... Nc6 {[%clk 0:02:59.2]} 6. Nf3 {[%clk 0:02:58.4]} 6... e6 {[%clk
0:02:59.3]} 7. cxd5 {[%clk 0:02:55.8]} 7... Nxd5 {[%clk 0:02:57.8]} 8. Bd3
{[%clk 0:02:56]} 8... Be7 {[%clk 0:02:56]} 9. O-O {[%clk 0:02:56.1]} 9... Ncb4
{[%clk 0:02:52.7]} 10. Bb1 {[%clk 0:02:55.9]} 10... Bd7 {[%clk 0:02:49.9]} 11.
Re1 {[%clk 0:02:55.1]} 11... Rc8 {[%clk 0:02:47.6]} 12. Bd2 {[%clk 0:02:50.5]}
12... Nxc3 {[%clk 0:02:17.3]} 13. bxc3 {[%clk 0:02:47]} 13... Nd5 {[%clk
0:02:17.7]} 14. Qb3 {[%clk 0:02:22.6]} 14... Qc7 {[%clk 0:02:00]} 15. Rc1 {[%clk
0:01:57.8]} 15... b5 {[%clk 0:01:52.8]} 16. Ne5 {[%clk 0:01:45.5]} 16... O-O
{[%clk 0:01:42.6]} 17. Bd3 {[%clk 0:00:42.1]} 17... a6 {[%clk 0:01:32.7]} 18.
Be4 {[%clk 0:00:38.2]} 18... Nb6 {[%clk 0:01:25]} 19. Qd1 {[%clk 0:00:31.6]}
19... Nc4 {[%clk 0:01:04.6]} 20. Bf4 {[%clk 0:00:30]} 20... Nxe5 {[%clk
0:00:59.3]} 21. Bxe5 {[%clk 0:00:26.8]} 21... Bd6 {[%clk 0:00:59.6]} 22. Bxd6
{[%clk 0:00:13.7]} 22... Qxd6 {[%clk 0:01:00.5]} 23. Qh5 {[%clk 0:00:05.5]}
23... g6 {[%clk 0:01:00.5]} 24. Qh4 {[%clk 0:00:05.9]} 24... Bc6 {[%clk
0:00:59.7]} 25. Bd3 {[%clk 0:00:04.8]} 25... Bd5 {[%clk 0:00:59.4]} 26. Qg3
{[%clk 0:00:04.7]} 26... Qc6 {[%clk 0:00:58.6]} 27. h4 {[%clk 0:00:03.1]} 27...
Bc4 {[%clk 0:00:52.3]} 28. Bc2 {[%clk 0:00:02.6]} 28... Qd5 {[%clk 0:00:50]} 29.
Re1 {[%clk 0:00:02.6]} 29... Bxa2 {[%clk 0:00:44.9]} 30. Re5 {[%clk 0:00:02.5]}
30... Qc4 {[%clk 0:00:45.2]} 31. h5 {[%clk 0:00:02.1]} 31... Bb3 {[%clk
0:00:42.3]} 32. Bd3 {[%clk 0:00:01.7]} 32... Qxc3 {[%clk 0:00:41.5]} 33. Rae1
{[%clk 0:00:01.5]} 33... Qxd4 {[%clk 0:00:40.1]} 34. hxg6 {[%clk 0:00:02]} 34...
fxg6 {[%clk 0:00:37.9]} 35. Bxg6 {[%clk 0:00:02.3]} 35... Kh8 {[%clk 0:00:37.3]}
36. Bh5 {[%clk 0:00:02.1]} 36... Rg8 {[%clk 0:00:36.8]} 37. Qh2 {[%clk
0:00:01.8]} 37... Bd5 {[%clk 0:00:35.6]} 38. Bf3 {[%clk 0:00:02]} 38... Bxf3
{[%clk 0:00:34.2]} 39. g3 {[%clk 0:00:02.6]} 39... Qxe5 {[%clk 0:00:32.1]} 40.
Rxe5 {[%clk 0:00:02.1]} 40... Rc1+ {[%clk 0:00:32.1]} 41. Re1 {[%clk 0:00:03]}
41... Rxe1# {[%clk 0:00:32.2]} 0-1

[Event "Early-Titled-Tuesday-Blitz-March-05-2024"]
[Site "Chess.com"]
[Date "2024.03.05"]
[Round "8"]
[White "Practical-Play"]
[Black "Titus369"]
[Result "1-0"]
[WhiteElo "2538"]
[BlackElo "2630"]
[TimeControl "180+1"]
[EndTime "9:30:07 PST"]
[Termination "Practical-Play won by resignation"]

1. e4 {[%clk 0:02:48.3]} 1... c5 {[%clk 0:02:52.7]} 2. c3 {[%clk 0:02:47.5]}
2... g6 {[%clk 0:02:48.5]} 3. d4 {[%clk 0:02:43.8]} 3... cxd4 {[%clk 0:02:44.2]}
4. cxd4 {[%clk 0:02:44.7]} 4... d5 {[%clk 0:02:42.2]} 5. Bb5+ {[%clk 0:02:43.6]}
5... Bd7 {[%clk 0:02:11.1]} 6. Bxd7+ {[%clk 0:02:42.8]} 6... Qxd7 {[%clk
0:02:09.7]} 7. Nf3 {[%clk 0:02:41.4]} 7... Bg7 {[%clk 0:01:59.6]} 8. Nc3 {[%clk
0:02:31.9]} 8... dxe4 {[%clk 0:01:47.9]} 9. Nxe4 {[%clk 0:02:30.8]} 9... Na6
{[%clk 0:01:40.2]} 10. O-O {[%clk 0:02:23]} 10... Rd8 {[%clk 0:01:18.9]} 11. Be3
{[%clk 0:02:16.2]} 11... Nf6 {[%clk 0:01:17.9]} 12. Ne5 {[%clk 0:02:14.6]} 12...
Qb5 {[%clk 0:01:11.1]} 13. Nc3 {[%clk 0:02:08.5]} 13... Qa5 {[%clk 0:00:47.6]}
14. Qb3 {[%clk 0:02:06]} 14... O-O {[%clk 0:00:47.5]} 15. Qxb7 {[%clk 0:02:04]}
15... Nb4 {[%clk 0:00:44]} 16. a3 {[%clk 0:01:58.2]} 16... Nc2 {[%clk
0:00:41.1]} 17. Nc6 {[%clk 0:01:43.9]} 17... Qb6 {[%clk 0:00:31.7]} 18. Qxb6
{[%clk 0:01:40.7]} 18... axb6 {[%clk 0:00:32.6]} 19. Nxd8 {[%clk 0:01:35.1]}
19... Nxa1 {[%clk 0:00:31.6]} 20. Nc6 {[%clk 0:01:23.7]} 20... Nc2 {[%clk
0:00:31.5]} 21. Nxe7+ {[%clk 0:01:23.9]} 21... Kh8 {[%clk 0:00:31.8]} 22. h3
{[%clk 0:00:57.3]} 22... Re8 {[%clk 0:00:25.4]} 23. Ned5 {[%clk 0:00:32.5]}
23... Nxd5 {[%clk 0:00:17.5]} 24. Nxd5 {[%clk 0:00:33.4]} 24... b5 {[%clk
0:00:16.4]} 25. Nc7 {[%clk 0:00:27.9]} 25... Rb8 {[%clk 0:00:12.9]} 26. Rd1
{[%clk 0:00:21.4]} 26... Rb7 {[%clk 0:00:11.8]} 27. Na6 {[%clk 0:00:19.2]} 27...
Rd7 {[%clk 0:00:09.6]} 28. Nc5 {[%clk 0:00:18.2]} 28... Rd5 {[%clk 0:00:09.7]}
29. Rd2 {[%clk 0:00:14]} 29... Nxd4 {[%clk 0:00:08.6]} 30. Nb3 {[%clk
0:00:11.8]} 30... Nxb3 {[%clk 0:00:03.6]} 31. Rxd5 {[%clk 0:00:11.6]} 31... b4
{[%clk 0:00:01.8]} 32. Rd8+ {[%clk 0:00:10.8]} 32... Bf8 {[%clk 0:00:01.8]} 33.
Rxf8+ {[%clk 0:00:11.1]} 33... Kg7 {[%clk 0:00:02.7]} 34. Rb8 {[%clk 0:00:11.7]}
34... bxa3 {[%clk 0:00:03.6]} 35. Rxb3 {[%clk 0:00:11.2]} 35... a2 {[%clk
0:00:04.5]} 36. Ra3 {[%clk 0:00:11.7]} 36... a1=Q+ {[%clk 0:00:05.3]} 37. Rxa1
{[%clk 0:00:12.1]} 1-0

[Event "Early-Titled-Tuesday-Blitz-March-05-2024"]
[Site "Chess.com"]
[Date "2024.03.05"]
[Round "8"]
[White "RianKapriaga"]
[Black "Rawnsdale"]
[Result "0-1"]
[WhiteElo "2292"]
[BlackElo "2495"]
[TimeControl "180+1"]
[EndTime "9:30:08 PST"]
[Termination "Rawnsdale won on time"]

1. d4 {[%clk 0:02:55]} 1... d5 {[%clk 0:02:58.2]} 2. Nf3 {[%clk 0:02:54.6]} 2...
e6 {[%clk 0:02:56.4]} 3. c4 {[%clk 0:02:53.7]} 3... Be7 {[%clk 0:02:56.2]} 4.
Nc3 {[%clk 0:02:51.8]} 4... Nf6 {[%clk 0:02:56.3]} 5. Bg5 {[%clk 0:02:46.6]}
5... h6 {[%clk 0:02:53.6]} 6. Bh4 {[%clk 0:02:45.6]} 6... O-O {[%clk 0:02:50]}
7. e3 {[%clk 0:02:44.8]} 7... Nbd7 {[%clk 0:02:50.2]} 8. cxd5 {[%clk 0:02:33.9]}
8... Nxd5 {[%clk 0:02:46.6]} 9. Bxe7 {[%clk 0:02:28.9]} 9... Qxe7 {[%clk
0:02:44.9]} 10. Nxd5 {[%clk 0:02:15.7]} 10... exd5 {[%clk 0:02:45.8]} 11. Rc1
{[%clk 0:02:15.6]} 11... c6 {[%clk 0:02:39.3]} 12. Bd3 {[%clk 0:02:15]} 12...
Nf6 {[%clk 0:02:33.3]} 13. Ne5 {[%clk 0:02:14]} 13... Be6 {[%clk 0:02:30.1]} 14.
O-O {[%clk 0:02:12.4]} 14... Ne4 {[%clk 0:02:15.9]} 15. f3 {[%clk 0:02:03.6]}
15... Nd6 {[%clk 0:02:14.3]} 16. Bb1 {[%clk 0:01:53.9]} 16... Bf5 {[%clk
0:02:11]} 17. Bxf5 {[%clk 0:01:35.6]} 17... Nxf5 {[%clk 0:02:11.9]} 18. Qd3
{[%clk 0:01:35]} 18... Qe6 {[%clk 0:02:08.1]} 19. e4 {[%clk 0:01:31.3]} 19...
dxe4 {[%clk 0:01:59.9]} 20. fxe4 {[%clk 0:01:32.2]} 20... Nd6 {[%clk 0:01:59.9]}
21. Rf4 {[%clk 0:01:24.2]} 21... Rad8 {[%clk 0:01:57.7]} 22. Rcf1 {[%clk
0:01:02.8]} 22... Nb5 {[%clk 0:01:51.8]} 23. Nf3 {[%clk 0:00:59.9]} 23... Qxa2
{[%clk 0:01:39]} 24. Qe3 {[%clk 0:00:36]} 24... Qxb2 {[%clk 0:01:32.8]} 25. e5
{[%clk 0:00:34.9]} 25... Nc3 {[%clk 0:01:28.6]} 26. Rg4 {[%clk 0:00:31.2]} 26...
Kh8 {[%clk 0:01:16.5]} 27. Ng5 {[%clk 0:00:30.2]} 27... Nd5 {[%clk 0:00:31.3]}
28. Qh3 {[%clk 0:00:23.5]} 28... Qe2 {[%clk 0:00:14.5]} 29. Nxf7+ {[%clk
0:00:18.2]} 29... Rxf7 {[%clk 0:00:14.7]} 30. Rxf7 {[%clk 0:00:18.5]} 30... Ne3
{[%clk 0:00:15.2]} 31. Qxe3 {[%clk 0:00:04.5]} 31... Qxe3+ {[%clk 0:00:15.3]}
32. Kh1 {[%clk 0:00:02.7]} 32... Qe1+ {[%clk 0:00:14.8]} 0-1

[Event "Early-Titled-Tuesday-Blitz-March-05-2024"]
[Site "Chess.com"]
[Date "2024.03.05"]
[Round "8"]
[White "AlexeiShirov"]
[Black "NikoTheodorou"]
[Result "0-1"]
[WhiteElo "2845"]
[BlackElo "3061"]
[TimeControl "180+1"]
[EndTime "9:30:09 PST"]
[Termination "NikoTheodorou won by resignation"]

1. e4 {[%clk 0:03:00.9]} 1... e5 {[%clk 0:03:00.2]} 2. Nf3 {[%clk 0:03:00.8]}
2... Nc6 {[%clk 0:03:01]} 3. Bb5 {[%clk 0:03:00.6]} 3... a6 {[%clk 0:03:01.6]}
4. Ba4 {[%clk 0:03:00.3]} 4... f5 {[%clk 0:03:02.1]} 5. d4 {[%clk 0:02:57.8]}
5... exd4 {[%clk 0:03:03]} 6. e5 {[%clk 0:02:47.1]} 6... b5 {[%clk 0:03:03.4]}
7. Bb3 {[%clk 0:02:46.3]} 7... Bb7 {[%clk 0:03:04]} 8. O-O {[%clk 0:02:42]} 8...
Na5 {[%clk 0:03:04.4]} 9. Nxd4 {[%clk 0:02:37.2]} 9... c5 {[%clk 0:03:04.8]} 10.
Nxf5 {[%clk 0:02:35.6]} 10... c4 {[%clk 0:03:05.4]} 11. Re1 {[%clk 0:02:28.5]}
11... Qb6 {[%clk 0:02:58.7]} 12. Nd6+ {[%clk 0:02:21.1]} 12... Bxd6 {[%clk
0:02:57]} 13. exd6+ {[%clk 0:02:19.4]} 13... Kf8 {[%clk 0:02:38.2]} 14. Bg5
{[%clk 0:02:13.3]} 14... Nf6 {[%clk 0:02:21.4]} 15. Bxf6 {[%clk 0:01:14.2]}
15... gxf6 {[%clk 0:02:22.3]} 16. Qh5 {[%clk 0:01:12.4]} 16... Qxd6 {[%clk
0:02:14.6]} 17. Nc3 {[%clk 0:01:09.7]} 17... Rg8 {[%clk 0:01:54.7]} 18. Qh6+
{[%clk 0:01:08.8]} 18... Kf7 {[%clk 0:01:55.4]} 19. Ne4 {[%clk 0:00:51.3]} 19...
Qe5 {[%clk 0:01:39.2]} 20. Ng3 {[%clk 0:00:38.3]} 20... Qg5 {[%clk 0:01:33.4]}
21. Qxh7+ {[%clk 0:00:37.6]} 21... Rg7 {[%clk 0:01:34.1]} 22. Qh3 {[%clk
0:00:37.5]} 22... Bc6 {[%clk 0:01:14.3]} 23. Rad1 {[%clk 0:00:37.1]} 23... Kg8
{[%clk 0:01:08.7]} 24. Rd4 {[%clk 0:00:32.5]} 24... Rh7 {[%clk 0:00:59.6]} 25.
Qf5 {[%clk 0:00:31.5]} 25... Kh8 {[%clk 0:00:40.5]} 26. Qxg5 {[%clk 0:00:28.5]}
26... fxg5 {[%clk 0:00:41.4]} 27. Nf5 {[%clk 0:00:27.8]} 27... Rf8 {[%clk
0:00:36.8]} 28. Ne7 {[%clk 0:00:26.9]} 28... Rh6 {[%clk 0:00:27.7]} 29. Nxc6
{[%clk 0:00:24.2]} 29... dxc6 {[%clk 0:00:28.6]} 30. Rd7 {[%clk 0:00:22.8]}
30... cxb3 {[%clk 0:00:26.2]} 31. axb3 {[%clk 0:00:22.8]} 31... c5 {[%clk
0:00:26.8]} 32. Ra1 {[%clk 0:00:20.5]} 32... Nc6 {[%clk 0:00:18.6]} 33. Rxa6
{[%clk 0:00:20.3]} 33... Re6 {[%clk 0:00:18.3]} 34. g3 {[%clk 0:00:20.5]} 34...
g4 {[%clk 0:00:08.4]} 35. Kg2 {[%clk 0:00:18.7]} 35... Re2 {[%clk 0:00:07.2]}
0-1

[Event "Early-Titled-Tuesday-Blitz-March-05-2024"]
[Site "Chess.com"]
[Date "2024.03.05"]
[Round "8"]
[White "BilodeauA"]
[Black "Jospem"]
[Result "0-1"]
[WhiteElo "3003"]
[BlackElo "3083"]
[TimeControl "180+1"]
[EndTime "9:30:12 PST"]
[Termination "Jospem won by resignation"]

1. e4 {[%clk 0:03:00.9]} 1... c5 {[%clk 0:02:57.5]} 2. Nf3 {[%clk 0:03:01.2]}
2... d6 {[%clk 0:02:56.9]} 3. Bb5+ {[%clk 0:03:00.6]} 3... Nd7 {[%clk
0:02:55.2]} 4. Ba4 {[%clk 0:03:00.9]} 4... Nf6 {[%clk 0:02:54.2]} 5. Qe2 {[%clk
0:03:01.4]} 5... e6 {[%clk 0:02:52.4]} 6. c4 {[%clk 0:02:59.3]} 6... b6 {[%clk
0:02:52.5]} 7. Nc3 {[%clk 0:02:59.4]} 7... Bb7 {[%clk 0:02:52.9]} 8. d3 {[%clk
0:02:59.4]} 8... Be7 {[%clk 0:02:53]} 9. O-O {[%clk 0:02:59.7]} 9... O-O {[%clk
0:02:53.1]} 10. h3 {[%clk 0:02:59.9]} 10... Nb8 {[%clk 0:02:49.2]} 11. Be3
{[%clk 0:02:57.7]} 11... Nc6 {[%clk 0:02:49.4]} 12. Rad1 {[%clk 0:02:56.3]}
12... Rc8 {[%clk 0:02:46.7]} 13. Bc2 {[%clk 0:02:38.8]} 13... Ba6 {[%clk
0:02:37.9]} 14. b3 {[%clk 0:02:36.5]} 14... d5 {[%clk 0:02:34.4]} 15. Nb1 {[%clk
0:02:14.1]} 15... Qc7 {[%clk 0:02:27.1]} 16. Bg5 {[%clk 0:02:10.8]} 16... Rfd8
{[%clk 0:02:20.2]} 17. Rfe1 {[%clk 0:02:08.3]} 17... h6 {[%clk 0:02:18.8]} 18.
Bh4 {[%clk 0:02:08]} 18... Re8 {[%clk 0:01:50.5]} 19. Nbd2 {[%clk 0:01:58.5]}
19... Nh5 {[%clk 0:01:41.3]} 20. Bxe7 {[%clk 0:01:51.9]} 20... Nf4 {[%clk
0:01:37.6]} 21. Qf1 {[%clk 0:01:51.8]} 21... Nxe7 {[%clk 0:01:37.4]} 22. g3
{[%clk 0:01:35.6]} 22... Nfg6 {[%clk 0:01:37.4]} 23. h4 {[%clk 0:01:36.3]} 23...
Bb7 {[%clk 0:01:34.2]} 24. Qh3 {[%clk 0:01:34.1]} 24... Rcd8 {[%clk 0:01:30.8]}
25. h5 {[%clk 0:01:30.2]} 25... Nf8 {[%clk 0:01:31.3]} 26. Qg4 {[%clk
0:01:21.7]} 26... Nd7 {[%clk 0:01:23.4]} 27. e5 {[%clk 0:01:22.2]} 27... Nc6
{[%clk 0:01:19]} 28. cxd5 {[%clk 0:00:52.4]} 28... Ncxe5 {[%clk 0:01:07.3]} 29.
Nxe5 {[%clk 0:00:49.7]} 29... Nxe5 {[%clk 0:01:08.2]} 30. Qf4 {[%clk 0:00:44.7]}
30... exd5 {[%clk 0:01:08.7]} 31. d4 {[%clk 0:00:37.3]} 31... cxd4 {[%clk
0:01:09]} 32. Bb1 {[%clk 0:00:32.8]} 32... d3 {[%clk 0:00:56.7]} 33. Bxd3 {[%clk
0:00:29.5]} 33... d4 {[%clk 0:00:57.3]} 34. Be4 {[%clk 0:00:21.9]} 34... Bxe4
{[%clk 0:00:52.9]} 35. Rxe4 {[%clk 0:00:22.8]} 35... Qc2 {[%clk 0:00:41.5]} 36.
Rde1 {[%clk 0:00:20.5]} 36... f6 {[%clk 0:00:34.3]} 37. Rxd4 {[%clk 0:00:13.8]}
37... Qc3 {[%clk 0:00:27]} 38. Rxd8 {[%clk 0:00:08.9]} 38... Rxd8 {[%clk
0:00:27.9]} 39. Re2 {[%clk 0:00:08.7]} 39... Rxd2 {[%clk 0:00:26]} 40. Rxd2
{[%clk 0:00:05]} 40... Qxd2 {[%clk 0:00:25.7]} 41. Qf5 {[%clk 0:00:05.2]} 41...
Qd1+ {[%clk 0:00:24.4]} 42. Kg2 {[%clk 0:00:05.1]} 42... Qd5+ {[%clk 0:00:24.6]}
43. Kg1 {[%clk 0:00:05.7]} 43... Nf3+ {[%clk 0:00:24.2]} 0-1

[Event "Early-Titled-Tuesday-Blitz-March-05-2024"]
[Site "Chess.com"]
[Date "2024.03.05"]
[Round "8"]
[White "AccioChess"]
[Black "SergioMoralesG"]
[Result "1-0"]
[WhiteElo "2376"]
[BlackElo "2488"]
[TimeControl "180+1"]
[EndTime "9:30:12 PST"]
[Termination "AccioChess won by resignation"]

1. e4 {[%clk 0:03:00.9]} 1... c5 {[%clk 0:02:19.8]} 2. Nf3 {[%clk 0:02:57.4]}
2... e6 {[%clk 0:02:19]} 3. d4 {[%clk 0:02:58]} 3... cxd4 {[%clk 0:02:19.1]} 4.
Nxd4 {[%clk 0:02:58.9]} 4... Nc6 {[%clk 0:02:19.2]} 5. Nc3 {[%clk 0:02:59.5]}
5... Qc7 {[%clk 0:02:19.3]} 6. Be3 {[%clk 0:02:59.5]} 6... a6 {[%clk 0:02:19.6]}
7. Be2 {[%clk 0:02:59.8]} 7... Nf6 {[%clk 0:02:19.1]} 8. O-O {[%clk 0:02:59.9]}
8... Bb4 {[%clk 0:02:18.6]} 9. Na4 {[%clk 0:02:50.2]} 9... Be7 {[%clk
0:02:17.3]} 10. Nxc6 {[%clk 0:02:38.2]} 10... bxc6 {[%clk 0:02:18.2]} 11. Qd3
{[%clk 0:01:47.3]} 11... Rb8 {[%clk 0:02:10]} 12. c4 {[%clk 0:01:42.8]} 12...
O-O {[%clk 0:02:03.1]} 13. Rac1 {[%clk 0:01:37.6]} 13... Qa5 {[%clk 0:01:53.6]}
14. b3 {[%clk 0:01:37.2]} 14... d5 {[%clk 0:01:51.9]} 15. exd5 {[%clk
0:01:32.2]} 15... cxd5 {[%clk 0:01:49.9]} 16. c5 {[%clk 0:01:26.3]} 16... e5
{[%clk 0:01:45.2]} 17. c6 {[%clk 0:01:25.1]} 17... d4 {[%clk 0:01:33.9]} 18. c7
{[%clk 0:01:18.5]} 18... Rb7 {[%clk 0:01:23.9]} 19. Qxa6 {[%clk 0:00:55.1]}
19... Qd5 {[%clk 0:01:08.5]} 20. Nb6 {[%clk 0:00:40]} 20... Rxb6 {[%clk
0:00:57.3]} 21. Qxb6 {[%clk 0:00:40.9]} 21... dxe3 {[%clk 0:00:56.9]} 22. Qxe3
{[%clk 0:00:41.8]} 22... e4 {[%clk 0:00:24.4]} 23. Rfd1 {[%clk 0:00:26.7]} 23...
Qe5 {[%clk 0:00:24.6]} 24. Qb6 {[%clk 0:00:24.3]} 24... Ne8 {[%clk 0:00:21.4]}
25. Rd8 {[%clk 0:00:13.9]} 25... Bd6 {[%clk 0:00:18.6]} 26. g3 {[%clk
0:00:08.1]} 26... Bxc7 {[%clk 0:00:16.9]} 27. Rxe8 {[%clk 0:00:07.6]} 27... Bxb6
{[%clk 0:00:14.1]} 28. Rxe5 {[%clk 0:00:07.7]} 28... Bb7 {[%clk 0:00:07.2]} 29.
Rb5 {[%clk 0:00:07.7]} 29... e3 {[%clk 0:00:05.5]} 30. Rxb6 {[%clk 0:00:08]}
30... exf2+ {[%clk 0:00:06.1]} 31. Kxf2 {[%clk 0:00:08.8]} 31... Be4 {[%clk
0:00:06.8]} 32. Rc7 {[%clk 0:00:08.4]} 32... h5 {[%clk 0:00:06]} 33. a4 {[%clk
0:00:08.5]} 33... g5 {[%clk 0:00:05.6]} 34. a5 {[%clk 0:00:09.2]} 34... h4
{[%clk 0:00:06.1]} 35. a6 {[%clk 0:00:09.4]} 35... Kg7 {[%clk 0:00:05.4]} 36. a7
{[%clk 0:00:09.7]} 36... Ra8 {[%clk 0:00:05.5]} 37. Rb8 {[%clk 0:00:09.8]} 1-0